bitfinex/quotes_BTCUSD_20250610
["timestamp","ask_amount","ask_price","bid_price","bid_amount"]
[1749589347272,1.73758765,109890.0,109880.0,0.98020686]
[1749589347483,1.73758765,109890.0,109880.0,0.98020688]
[1749589347694,1.73758765,109890.0,109880.0,0.97390795]
[1749589347902,1.73758765,109890.0,109880.0,0.98020688]
[1749589348558,1.73758765,109890.0,109880.0,0.97390795]
[1749589348748,1.73758765,109890.0,109880.0,0.98020776]
[1749589349003,0.50845191,109890.0,109880.0,0.98020778]
[1749589349219,1.73758765,109890.0,109880.0,0.98020777]
[1749589349456,1.73758765,109890.0,109880.0,0.97390795]
[1749589349731,1.73758765,109890.0,109880.0,0.98020896]
[1749589349963,1.82894105,109890.0,109880.0,0.97390795]
[1749589350182,1.82930105,109890.0,109880.0,0.97390795]
[1749589350409,1.82930105,109890.0,109880.0,0.97290795]
[1749589350614,1.82930105,109890.0,109880.0,0.97920992]
[1749589350839,1.82930105,109890.0,109880.0,0.97720994]
[1749589351047,1.82930105,109890.0,109880.0,0.97090795]
[1749589351251,1.82930105,109890.0,109880.0,0.97290795]
[1749589351451,1.82930105,109890.0,109880.0,0.97090795]
[1749589351656,1.82930105,109890.0,109880.0,0.97190795]
[1749589352068,1.82930105,109890.0,109880.0,0.97090795]
[1749589355460,2.51206835,109890.0,109880.0,0.1731972]
[1749589355671,0.54567009,109880.0,109840.0,0.07473058]
[1749589355941,0.64596787,109850.0,109840.0,0.07473058]
[1749589356147,0.74240787,109850.0,109840.0,0.07473058]
[1749589356588,0.74236787,109850.0,109840.0,0.07473058]
[1749589357023,0.76967187,109850.0,109840.0,0.07473058]
[1749589357278,0.76972005,109850.0,109840.0,0.07473058]
[1749589357511,0.8756143,109850.0,109840.0,0.002]
[1749589357721,1.83018217,109850.0,109840.0,0.002]
[1749589358456,1.83018217,109850.0,109820.0,0.002]
[1749589358457,1.60103574,109830.0,109820.0,0.002]
[1749589358679,1.80340999,109830.0,109820.0,0.002]
[1749589359543,0.39682546,109830.0,109820.0,0.002]
[1749589359750,1.10783333,109830.0,109820.0,0.002]
[1749589360171,1.7224012,109830.0,109820.0,0.002]
[1749589360608,1.7234012,109830.0,109820.0,0.002]
[1749589361068,1.7234012,109830.0,109820.0,0.01872328]
[1749589361328,1.7234012,109830.0,109820.0,0.01872397]
[1749589361545,1.7507102,109830.0,109820.0,0.01872348]
[1749589361756,1.77854405,109830.0,109820.0,0.002]
[1749589362201,1.86989745,109830.0,109820.0,0.002]
[1749589362684,1.89621745,109830.0,109820.0,0.002]
[1749589365376,1.89609745,109830.0,109820.0,0.002]
[1749589368368,1.77345745,109830.0,109820.0,0.002]
[1749589368855,1.89605745,109830.0,109820.0,0.002]
[1749589371432,0.35454085,109820.0,109810.0,0.0005]
[1749589371645,1.18852212,109820.0,109810.0,0.0005]
[1749589372316,1.09156212,109820.0,109810.0,0.0005]
[1749589372534,1.21472212,109820.0,109810.0,0.0005]
[1749589373211,1.82928999,109820.0,109810.0,0.0005]
[1749589373438,0.04654085,109810.0,109800.0,0.002]
[1749589373674,0.47789425,109810.0,109800.0,0.002]
[1749589373893,1.21562212,109810.0,109800.0,0.002]
[1749589374600,1.83018999,109810.0,109800.0,0.002]
[1749589374821,1.83118999,109810.0,109800.0,0.00248246]
[1749589375289,1.88118999,109810.0,109800.0,0.00248246]
[1749589377048,0.04654085,109790.0,109780.0,0.02868672]
[1749589377262,0.84958212,109790.0,109780.0,0.02883149]
[1749589377710,1.83147099,109790.0,109780.0,0.02883149]
[1749589377984,1.83147099,109790.0,109780.0,0.01214477]
[1749589378196,1.24306312,109790.0,109780.0,0.01214477]
[1749589378438,1.11978312,109790.0,109780.0,0.01614477]
[1749589378676,1.24310312,109790.0,109780.0,0.03294329]
[1749589378893,1.24310312,109790.0,109780.0,0.03294333]
[1749589379111,1.24310312,109790.0,109780.0,0.03294335]
[1749589379348,1.24310312,109790.0,109780.0,0.03294334]
[1749589379574,1.24310312,109790.0,109780.0,0.0309444]
[1749589379809,1.11978312,109790.0,109780.0,0.01414477]
[1749589380026,1.24306312,109790.0,109780.0,0.03094406]
[1749589380248,1.24306312,109790.0,109780.0,0.01414477]
[1749589380480,1.85863099,109790.0,109780.0,0.01414477]
[1749589380701,1.24446312,109790.0,109780.0,0.03094331]
[1749589381137,1.24446312,109790.0,109780.0,0.03094227]
[1749589381357,0.62989525,109790.0,109780.0,0.03094227]
[1749589381575,1.24446312,109790.0,109780.0,0.03094174]
[1749589381829,1.24446312,109790.0,109780.0,0.03094176]
[1749589382059,0.62989525,109790.0,109780.0,0.01414477]
[1749589382299,1.24446312,109790.0,109780.0,0.03094281]
[1749589382513,0.65156424,109790.0,109780.0,0.03094321]
[1749589382737,1.26613211,109790.0,109780.0,0.03094459]
[1749589382954,1.14245211,109790.0,109780.0,0.01414477]
[1749589383200,1.24454312,109790.0,109780.0,0.01414477]
[1749589383427,1.14246626,109790.0,109780.0,0.01414477]
[1749589383651,1.26618626,109790.0,109780.0,0.03094301]
[1749589383867,1.24450312,109790.0,109780.0,0.03094301]
[1749589384319,1.24450312,109790.0,109780.0,0.01414477]
[1749589384587,1.26619714,109790.0,109780.0,0.01414477]
[1749589384812,1.26619714,109790.0,109780.0,0.03094198]
[1749589385037,1.95042439,109790.0,109780.0,0.03094221]
[1749589385269,1.95042439,109790.0,109740.0,0.10583058]
[1749589385270,0.01454085,109760.0,109740.0,0.10583058]
[1749589385495,1.70732999,109750.0,109740.0,0.00248333]
[1749589385731,1.83116999,109750.0,109740.0,0.00248333]
[1749589385954,1.84028102,109750.0,109740.0,0.00248333]
[1749589386190,1.85850199,109750.0,109740.0,0.00248333]
[1749589386634,1.85850199,109750.0,109740.0,0.00448333]
[1749589386872,1.8802279,109750.0,109740.0,0.00248333]
[1749589387134,1.93628494,109750.0,109740.0,0.00248333]
[1749589387329,1.93528494,109750.0,109740.0,0.00248333]
[1749589387542,1.90812755,109750.0,109740.0,0.00248333]
[1749589387758,1.91012755,109750.0,109740.0,0.00248333]
[1749589387983,2.08974937,109750.0,109740.0,0.00248333]
[1749589388238,2.08974937,109750.0,109720.0,0.002]
[1749589388239,1.61587659,109740.0,109720.0,0.002]
[1749589388465,1.00130872,109730.0,109720.0,0.002]
[1749589388693,1.18034803,109730.0,109720.0,0.0021448]
[1749589388904,1.18490212,109730.0,109720.0,0.0187448]
[1749589389122,1.18490212,109730.0,109720.0,0.0351448]
[1749589389338,1.06046212,109730.0,109720.0,0.0185448]
[1749589389584,1.18498212,109730.0,109720.0,0.0351448]
[1749589389819,1.06146212,109730.0,109720.0,0.0351448]
[1749589390054,1.18598212,109730.0,109720.0,0.0351448]
[1749589390276,1.18598212,109730.0,109720.0,0.0185448]
[1749589390499,1.18598212,109730.0,109720.0,0.0021448]
[1749589390714,0.57261425,109730.0,109720.0,0.0021448]
[1749589390939,1.06146212,109730.0,109720.0,0.0021448]
[1749589391164,0.57265425,109730.0,109720.0,0.0021448]
[1749589391384,1.06146212,109730.0,109720.0,0.0021448]
[1749589391597,1.18722212,109730.0,109720.0,0.0021448]
[1749589392282,1.20372212,109730.0,109720.0,0.0021448]
[1749589392494,1.21942212,109730.0,109720.0,0.0021448]
[1749589392708,1.24675912,109730.0,109720.0,0.0021448]
[1749589393852,0.63219125,109730.0,109720.0,0.0021448]
[1749589394078,1.24675912,109730.0,109720.0,0.0021448]
[1749589394966,0.63219125,109730.0,109720.0,0.0021448]
[1749589395178,1.24675912,109730.0,109720.0,0.0021448]
[1749589396464,1.24575912,109730.0,109720.0,0.0021448]
[1749589396892,1.25075912,109730.0,109720.0,0.0021448]
[1749589397113,0.63635125,109730.0,109720.0,0.0021448]
[1749589397327,1.25091912,109730.0,109720.0,0.01890732]
[1749589397802,1.25091912,109730.0,109720.0,0.0021448]
[1749589398024,1.25091912,109730.0,109720.0,0.01890897]
[1749589398249,1.27254699,109730.0,109720.0,0.01890897]
[1749589398506,2.02846826,109730.0,109720.0,0.01890897]
[1749589398742,1.27437659,109710.0,109700.0,0.002]
[1749589398982,1.82628581,109710.0,109700.0,0.0021449]
[1749589399207,1.87628581,109710.0,109700.0,0.0021449]
[1749589399429,1.90363181,109710.0,109700.0,0.0021449]
[1749589399868,1.85943599,109710.0,109700.0,0.0021449]
[1749589400315,1.84427599,109710.0,109700.0,0.0021449]
[1749589400531,1.71987599,109710.0,109700.0,0.0021449]
[1749589400743,1.84635599,109710.0,109700.0,0.0021449]
[1749589401205,1.84639599,109710.0,109700.0,0.0021449]
[1749589401420,1.03577434,109710.0,109700.0,0.0021449]
[1749589401640,1.03777434,109710.0,109700.0,0.0021449]
[1749589401856,0.47724025,109710.0,109700.0,0.0021449]
[1749589402075,0.60384025,109710.0,109700.0,0.0021449]
[1749589402513,0.60384025,109710.0,109700.0,0.00843439]
[1749589402727,0.60384025,109710.0,109700.0,0.0021449]
[1749589403170,1.16437434,109710.0,109700.0,0.00843451]
[1749589403382,0.47724025,109710.0,109700.0,0.00843451]
[1749589403619,1.16449434,109710.0,109700.0,0.04033451]
[1749589403833,1.16449434,109710.0,109700.0,0.0403387]
[1749589404255,1.16449434,109710.0,109700.0,0.0340449]
[1749589404475,0.60396025,109710.0,109700.0,0.02503941]
[1749589404686,1.16449434,109710.0,109700.0,0.0187449]
[1749589404928,1.16449434,109710.0,109700.0,0.02503942]
[1749589405181,1.16449434,109710.0,109700.0,0.04033942]
[1749589405612,1.16449434,109710.0,109700.0,0.0340449]
[1749589405613,0.45786085,109710.0,109700.0,0.0340449]
[1749589405826,0.45786085,109710.0,109700.0,0.04034644]
[1749589406029,0.45786085,109710.0,109700.0,0.04034623]
[1749589406253,0.45786085,109710.0,109700.0,0.04034771]
[1749589406707,1.01839494,109710.0,109700.0,0.03135022]
[1749589406920,0.45786085,109710.0,109700.0,0.03135022]
[1749589407127,1.01839494,109710.0,109700.0,0.03135022]
[1749589407635,1.01839494,109710.0,109700.0,0.04645007]
[1749589407849,1.01839494,109710.0,109700.0,0.04014771]
[1749589408059,1.01839494,109710.0,109700.0,0.04645009]
[1749589408268,1.01839494,109710.0,109700.0,0.0464523]
[1749589408269,0.45786085,109710.0,109700.0,0.0464523]
[1749589408487,0.45838085,109710.0,109700.0,0.04014771]
[1749589408694,0.45838085,109710.0,109700.0,0.04646074]
[1749589409125,1.01891494,109710.0,109700.0,0.04646074]
[1749589409341,1.01891494,109710.0,109700.0,0.00844771]
[1749589409974,1.01891494,109710.0,109700.0,0.01476066]
[1749589410183,0.45846085,109710.0,109700.0,0.04556067]
[1749589410594,0.45646085,109710.0,109700.0,0.06239427]
[1749589410798,0.35454085,109710.0,109700.0,0.06239412]
[1749589411009,0.45442085,109710.0,109700.0,0.04756074]
[1749589411219,0.45438085,109710.0,109700.0,0.05808716]
[1749589411427,0.35454085,109710.0,109700.0,0.04756246]
[1749589411639,0.45438085,109710.0,109700.0,0.04756246]
[1749589411850,0.45438085,109710.0,109700.0,0.06440155]
[1749589412058,0.47612875,109710.0,109700.0,0.06440155]
[1749589412490,0.47612875,109710.0,109700.0,0.04880155]
[1749589412712,0.47612875,109710.0,109700.0,0.04248375]
[1749589412920,0.47612875,109710.0,109700.0,0.01676122]
[1749589413146,0.45438085,109710.0,109700.0,0.03359721]
[1749589413360,0.45438085,109710.0,109700.0,0.01044771]
[1749589413578,1.01491494,109710.0,109700.0,0.03359723]
[1749589413789,1.0366861,109710.0,109700.0,0.03359723]
[1749589414265,1.0366861,109710.0,109700.0,0.03360319]
[1749589414521,1.0366861,109710.0,109700.0,0.01044771]
[1749589414769,1.0366861,109710.0,109700.0,0.02734143]
[1749589415305,1.0366861,109710.0,109700.0,0.01678285]
[1749589415493,1.0366861,109710.0,109700.0,0.03367657]
[1749589415750,1.0366861,109710.0,109700.0,0.04778285]
[1749589416006,0.47591201,109710.0,109700.0,0.04778296]
[1749589416218,0.47591201,109710.0,109700.0,0.04144771]
[1749589416425,0.45414085,109710.0,109700.0,0.04778144]
[1749589416642,0.34,109710.0,109700.0,0.05833735]
[1749589416859,0.34,109710.0,109700.0,0.04144771]
[1749589417088,0.34,109710.0,109700.0,0.0583335]
[1749589417303,0.34,109710.0,109700.0,0.06466556]
[1749589417511,0.34,109710.0,109700.0,0.08966486]
[1749589418166,0.34,109710.0,109700.0,0.08966305]
[1749589418379,0.135946,109720.0,109710.0,0.0318]
[1749589418584,0.45410085,109720.0,109710.0,0.05501309]
[1749589418800,0.45410085,109720.0,109710.0,0.05501324]
[1749589419008,0.45406085,109720.0,109710.0,0.0318]
[1749589419435,0.45406085,109720.0,109710.0,0.04868248]
[1749589419664,0.34,109720.0,109710.0,0.05501323]
[1749589419880,0.341,109720.0,109710.0,0.1231534]
[1749589420098,0.341,109720.0,109710.0,0.12948201]
[1749589420341,0.001,109720.0,109710.0,0.1231534]
[1749589420780,0.43944,109730.0,109720.0,0.0318]
[1749589421008,0.43944,109730.0,109720.0,0.03812793]
[1749589421224,0.01015908,109740.0,109730.0,0.0318]
[1749589421225,0.12425993,109740.0,109730.0,0.0318]
[1749589421440,0.46425993,109740.0,109730.0,0.03812793]
[1749589421657,0.34,109730.0,109720.0,0.0318]
[1749589421890,0.91507494,109730.0,109720.0,0.01687197]
[1749589422105,0.91507494,109730.0,109720.0,0.01687282]
[1749589422317,0.91507494,109730.0,109720.0,0.01687401]
[1749589422528,0.35454085,109730.0,109720.0,0.0063278]
[1749589422736,0.35454085,109730.0,109720.0,0.02320185]
[1749589422979,0.01454085,109730.0,109720.0,0.00632776]
[1749589423188,0.35454085,109730.0,109720.0,0.02520161]
[1749589423397,0.35454085,109730.0,109720.0,0.003]
[1749589423606,0.35454085,109730.0,109720.0,0.00932762]
[1749589423812,0.35454085,109730.0,109720.0,0.0093273]
[1749589424037,0.35454085,109730.0,109720.0,0.02619979]
[1749589424303,0.35454085,109730.0,109720.0,0.00932694]
[1749589424521,0.35454085,109730.0,109720.0,0.00932706]
[1749589424737,0.35454085,109730.0,109720.0,0.01987296]
[1749589424960,0.35454085,109730.0,109720.0,0.00932696]
[1749589425179,0.35454085,109730.0,109720.0,0.02619841]
[1749589425422,0.35454085,109730.0,109720.0,0.00932667]
[1749589425641,0.35454085,109730.0,109720.0,0.00932658]
[1749589425902,0.35454085,109730.0,109720.0,0.02619768]
[1749589426132,0.35454085,109730.0,109720.0,0.00932667]
[1749589426360,0.35454085,109730.0,109720.0,0.01987064]
[1749589426594,0.35454085,109730.0,109720.0,0.02619769]
[1749589426864,0.35454085,109730.0,109720.0,0.003]
[1749589427076,0.35454085,109730.0,109720.0,0.01987069]
[1749589427288,0.35454085,109730.0,109720.0,0.003]
[1749589427514,0.35454085,109730.0,109720.0,0.02619777]
[1749589427735,0.35454085,109730.0,109720.0,0.01987111]
[1749589427952,0.35454085,109730.0,109720.0,0.02619801]
[1749589428189,0.35454085,109730.0,109720.0,0.01987139]
[1749589428426,0.35454085,109730.0,109720.0,0.01987192]
[1749589428654,0.35454085,109730.0,109720.0,0.02619888]
[1749589429126,0.35454085,109730.0,109720.0,0.02619853]
[1749589429352,0.97071892,109730.0,109720.0,0.02619843]
[1749589429585,0.97071892,109730.0,109720.0,0.01987138]
[1749589429833,0.97071892,109730.0,109720.0,0.0093268]
[1749589430048,0.97071892,109730.0,109720.0,0.02619671]
[1749589430263,0.97071892,109730.0,109720.0,0.01988004]
[1749589430475,0.97071892,109730.0,109720.0,0.00932998]
[1749589430718,0.97071892,109730.0,109720.0,0.02620907]
[1749589430937,0.97071892,109730.0,109720.0,0.00932946]
[1749589431149,0.97071892,109730.0,109720.0,0.02620815]
[1749589431360,0.97071892,109730.0,109720.0,0.00932956]
[1749589431585,0.97071892,109730.0,109720.0,0.02620678]
[1749589431805,0.97071892,109730.0,109720.0,0.003]
[1749589432035,0.97071892,109730.0,109720.0,0.0093288]
[1749589432261,0.97071892,109730.0,109720.0,0.00932882]
[1749589432476,0.97071892,109730.0,109720.0,0.003]
[1749589432705,0.97071892,109730.0,109720.0,0.0262069]
[1749589432928,0.97071892,109730.0,109720.0,0.00932915]
[1749589433143,0.97071892,109730.0,109720.0,0.003]
[1749589433379,0.97071892,109730.0,109720.0,0.01987808]
[1749589433611,0.97071892,109730.0,109720.0,0.003]
[1749589433834,0.97071892,109730.0,109720.0,0.00932978]
[1749589434038,0.97071892,109730.0,109720.0,0.003]
[1749589434246,0.97071892,109730.0,109720.0,0.02620834]
[1749589434460,0.97071892,109730.0,109720.0,0.003]
[1749589434690,0.97071892,109730.0,109720.0,0.01987853]
[1749589434906,0.97071892,109730.0,109720.0,0.02620809]
[1749589435551,0.97071892,109730.0,109720.0,0.02620817]
[1749589435760,0.97071892,109730.0,109720.0,0.00932956]
[1749589435988,0.98571892,109730.0,109720.0,0.00932956]
[1749589436211,0.98571892,109730.0,109720.0,0.01985444]
[1749589436421,0.98571892,109730.0,109720.0,0.0261731]
[1749589436422,0.97071892,109730.0,109720.0,0.0261731]
[1749589436637,0.97071892,109730.0,109720.0,0.00931995]
[1749589436843,0.97071892,109730.0,109720.0,0.003]
[1749589437289,0.97071892,109730.0,109720.0,0.01985322]
[1749589437511,0.97071892,109730.0,109720.0,0.02617416]
[1749589437725,0.98681892,109730.0,109720.0,0.003]
[1749589437949,0.98681892,109730.0,109720.0,0.02617511]
[1749589438163,0.98681892,109730.0,109720.0,0.0198547]
[1749589438367,0.98681892,109730.0,109720.0,0.01984966]
[1749589438821,1.00311892,109730.0,109720.0,0.01984972]
[1749589439267,1.00311892,109730.0,109720.0,0.02616839]
[1749589439485,1.10215892,109730.0,109720.0,0.0198493]
[1749589439722,1.28486572,109730.0,109720.0,0.02616746]
[1749589439993,1.19351232,109730.0,109720.0,0.0198511]
[1749589440221,1.22084732,109730.0,109720.0,0.0198511]
[1749589440447,1.22084732,109730.0,109720.0,0.00931922]
[1749589440673,1.22084732,109730.0,109720.0,0.02516953]
[1749589440887,1.22084732,109730.0,109720.0,0.02316958]
[1749589441095,0.37064085,109720.0,109700.0,0.06484771]
[1749589441334,1.08581892,109720.0,109700.0,0.08801838]
[1749589441541,1.08581892,109720.0,109700.0,0.07116708]
[1749589441753,1.08581892,109720.0,109700.0,0.08169938]
[1749589441963,1.08581892,109720.0,109700.0,0.08169917]
[1749589442170,1.08581892,109720.0,109700.0,0.08169898]
[1749589442386,1.08581892,109720.0,109700.0,0.08801806]
[1749589442602,1.08581892,109720.0,109700.0,0.07116673]
[1749589442823,1.08581892,109720.0,109700.0,0.08469722]
[1749589443039,1.08581892,109720.0,109700.0,0.07416586]
[1749589443287,1.08581892,109720.0,109700.0,0.0846947]
[1749589443531,1.08581892,109720.0,109700.0,0.09401011]
[1749589443798,1.08581892,109720.0,109700.0,0.07716459]
[1749589444032,1.10211892,109720.0,109700.0,0.0771647]
[1749589444251,1.10211892,109720.0,109700.0,0.03131919]
[1749589444252,0.34,109710.0,109700.0,0.03131919]
[1749589444474,0.95617807,109710.0,109700.0,0.01444771]
[1749589444692,0.95617807,109710.0,109700.0,0.02077512]
[1749589444920,0.95617807,109710.0,109700.0,0.03132042]
[1749589445155,0.95617807,109710.0,109700.0,0.01144771]
[1749589445366,1.05509807,109710.0,109700.0,0.02832031]
[1749589445581,1.05509807,109710.0,109700.0,0.03764737]
[1749589445793,1.05509807,109710.0,109700.0,0.0313199]
[1749589446004,1.05509807,109710.0,109700.0,0.05217486]
[1749589446208,1.05509807,109710.0,109700.0,0.04584771]
[1749589446427,0.95617807,109710.0,109700.0,0.06272013]
[1749589446640,0.95617807,109710.0,109700.0,0.06904741]
[1749589446853,0.95617807,109710.0,109700.0,0.06604752]
[1749589447062,0.95617807,109710.0,109700.0,0.06272038]
[1749589447063,0.34,109710.0,109700.0,0.06272038]
[1749589447273,0.34,109710.0,109700.0,0.05284737]
[1749589447484,0.34,109710.0,109700.0,0.02964771]
[1749589447702,0.34,109710.0,109700.0,0.04651958]
[1749589447912,0.34,109710.0,109700.0,0.02964771]
[1749589448354,0.3314634,109710.0,109700.0,0.02078723]
[1749589448562,0.3314634,109710.0,109700.0,0.03135305]
[1749589448775,0.3314634,109710.0,109700.0,0.03135306]
[1749589449009,0.3314634,109710.0,109700.0,0.02078732]
[1749589449222,0.3314634,109710.0,109700.0,0.05288736]
[1749589449438,0.3314634,109710.0,109700.0,0.06345195]
[1749589449652,0.3314634,109710.0,109700.0,0.04654771]
[1749589449873,0.32719528,109710.0,109700.0,0.06345133]
[1749589450118,0.32719528,109710.0,109700.0,0.06345007]
[1749589450324,0.32719528,109710.0,109700.0,0.04654771]
[1749589450535,0.32719528,109710.0,109700.0,0.05288593]
[1749589450743,0.32719528,109710.0,109700.0,0.06978786]
[1749589450955,0.32719528,109710.0,109700.0,0.04654771]
[1749589451161,0.32719528,109710.0,109700.0,0.05288595]
[1749589451406,0.32719528,109710.0,109700.0,0.0634493]
[1749589451862,0.32719528,109710.0,109700.0,0.06344921]
[1749589452080,0.32719528,109710.0,109700.0,0.069788]
[1749589452283,0.32719528,109710.0,109700.0,0.04654771]
[1749589452496,0.32719528,109710.0,109700.0,0.069788]
[1749589452728,0.32719528,109710.0,109700.0,0.06978849]
[1749589452946,0.32719528,109710.0,109700.0,0.05288671]
[1749589453158,0.32719528,109710.0,109700.0,0.06979419]
[1749589453381,0.32719528,109710.0,109700.0,0.06345748]
[1749589453592,0.32719528,109710.0,109700.0,0.04654771]
[1749589453800,0.32719528,109710.0,109700.0,0.06345941]
[1749589454020,0.32719528,109710.0,109700.0,0.04654771]
[1749589454234,0.3186591,109710.0,109700.0,0.06980258]
[1749589454441,0.3186591,109710.0,109700.0,0.0634605]
[1749589454660,0.3186591,109710.0,109700.0,0.04654771]
[1749589454872,0.3186591,109710.0,109700.0,0.03136026]
[1749589455085,0.3186591,109710.0,109700.0,0.01444771]
[1749589455318,0.3186591,109710.0,109700.0,0.03136033]
[1749589455529,0.3186591,109710.0,109700.0,0.02078995]
[1749589455736,0.3186591,109710.0,109700.0,0.03136036]
[1749589455965,0.3186591,109710.0,109700.0,0.02078995]
[1749589456183,0.3186591,109710.0,109700.0,0.02078997]
[1749589456397,0.3186591,109710.0,109700.0,0.04404495]
[1749589456609,0.3186591,109710.0,109700.0,0.02078997]
[1749589456847,0.3186591,109710.0,109700.0,0.03770284]
[1749589457064,0.3186591,109710.0,109700.0,0.04404516]
[1749589457273,0.3186591,109710.0,109700.0,0.04404546]
[1749589457712,0.3186591,109710.0,109700.0,0.02713237]
[1749589457960,0.3186591,109710.0,109700.0,0.04404656]
[1749589458391,0.3186591,109710.0,109700.0,0.04404738]
[1749589458601,0.3186591,109710.0,109700.0,0.03770437]
[1749589458824,0.3186591,109710.0,109700.0,0.03770426]
[1749589459036,0.3186591,109710.0,109700.0,0.03770425]
[1749589459723,0.3186591,109710.0,109700.0,0.03766028]
[1749589459949,0.3186591,109710.0,109700.0,0.03766027]
[1749589460157,0.3186591,109710.0,109700.0,0.06876028]
[1749589460373,0.3186591,109710.0,109700.0,0.05188997]
[1749589460819,0.3186591,109710.0,109700.0,0.06875996]
[1749589461024,0.3186591,109710.0,109700.0,0.06875947]
[1749589461238,0.3186591,109710.0,109700.0,0.06875833]
[1749589461448,0.3186591,109710.0,109700.0,0.0687568]
[1749589461665,0.059635,109730.0,109700.0,0.76088827]
[1749589461883,0.439,109730.0,109710.0,0.67267807]
[1749589462111,0.34,109730.0,109710.0,0.68953834]
[1749589462326,0.34,109730.0,109710.0,0.67267807]
[1749589462542,0.34,109730.0,109710.0,0.07335947]
[1749589462751,0.34,109730.0,109710.0,0.07335973]
[1749589462965,0.3559,109730.0,109710.0,0.07335973]
[1749589463194,0.47054,109730.0,109710.0,0.07335973]
[1749589463412,0.47054,109730.0,109710.0,0.0565]
[1749589463625,0.47054,109730.0,109710.0,0.07536985]
[1749589463848,0.47054,109730.0,109710.0,0.0585]
[1749589464286,0.47054,109730.0,109710.0,0.07537017]
[1749589464529,0.45494,109730.0,109710.0,0.07536987]
[1749589464770,0.45494,109730.0,109710.0,0.07736987]
[1749589465258,0.45494,109730.0,109710.0,0.07737034]
[1749589465476,0.45494,109730.0,109710.0,0.0605]
[1749589465703,0.47054,109730.0,109710.0,0.07736955]
[1749589465922,0.47054,109730.0,109710.0,0.0605]
[1749589466142,0.47054,109730.0,109710.0,0.07736946]
[1749589467061,0.47054,109730.0,109710.0,0.0605]
[1749589467356,0.47054,109730.0,109710.0,0.07736896]
[1749589467589,0.45494,109730.0,109710.0,0.07736895]
[1749589467810,0.45494,109730.0,109710.0,0.98534702]
[1749589468241,0.34,109730.0,109710.0,0.98534702]
[1749589468462,0.439,109730.0,109710.0,0.96647807]
[1749589468677,0.439,109730.0,109710.0,0.96947807]
[1749589469096,0.455,109730.0,109710.0,0.96947807]
[1749589469333,0.42451461,109740.0,109710.0,1.07770389]
[1749589469584,0.48156276,109740.0,109720.0,0.0327]
[1749589469780,0.10906276,109740.0,109720.0,0.6657482]
[1749589470013,0.10906276,109740.0,109720.0,0.64887807]
[1749589470441,0.44906276,109740.0,109720.0,0.66574642]
[1749589470656,0.44906276,109740.0,109720.0,0.04956935]
[1749589470905,0.46506276,109740.0,109720.0,0.665747]
[1749589471135,0.46506276,109740.0,109720.0,0.64987807]
[1749589471377,0.46506276,109740.0,109720.0,0.05157011]
[1749589471597,0.44906276,109740.0,109720.0,0.66774802]
[1749589471813,0.44906276,109740.0,109720.0,0.65087807]
[1749589472030,0.44906276,109740.0,109720.0,0.66774773]
[1749589472305,0.44906276,109740.0,109720.0,0.66086424]
[1749589472511,0.44906276,109740.0,109720.0,0.6777311]
[1749589472757,0.44906276,109740.0,109720.0,0.67773067]
[1749589472978,0.44906276,109740.0,109720.0,0.67773069]
[1749589473199,0.44906276,109740.0,109720.0,0.67773076]
[1749589473434,0.44906276,109740.0,109720.0,0.06155298]
[1749589473648,0.44906276,109740.0,109720.0,0.05156651]
[1749589473897,0.46486276,109740.0,109720.0,0.34336645]
[1749589474129,0.46486276,109740.0,109720.0,0.95954452]
[1749589474356,0.48108276,109740.0,109720.0,0.34336652]
[1749589474581,0.48108276,109740.0,109720.0,0.34336655]
[1749589474801,0.46458276,109740.0,109720.0,0.3265]
[1749589475037,0.46458276,109740.0,109720.0,0.34336651]
[1749589475254,0.46462276,109740.0,109720.0,0.34336651]
[1749589475475,0.46462276,109740.0,109720.0,0.3265]
[1749589475684,0.46462276,109740.0,109720.0,0.34336684]
[1749589475898,0.46462276,109740.0,109720.0,0.3265]
[1749589476325,0.46462276,109740.0,109720.0,0.34336687]
[1749589476553,0.46462276,109740.0,109720.0,0.35357391]
[1749589476765,0.44882276,109740.0,109720.0,0.3433667]
[1749589476980,0.46462276,109740.0,109720.0,0.34336673]
[1749589477211,0.98212083,109740.0,109720.0,0.3265]
[1749589477424,0.98212083,109740.0,109720.0,0.34336671]
[1749589477425,0.38194276,109740.0,109720.0,0.34336671]
[1749589477638,0.38194276,109740.0,109720.0,0.34336697]
[1749589477893,0.38194276,109740.0,109720.0,0.34336909]
[1749589478102,0.38194276,109740.0,109720.0,0.3265]
[1749589478584,0.38194276,109740.0,109720.0,0.34337115]
[1749589478829,0.04824085,109750.0,109720.0,1.14950262]
[1749589479050,0.342,109750.0,109730.0,0.76353147]
[1749589479296,0.342,109750.0,109730.0,0.78040105]
[1749589479515,0.342,109750.0,109730.0,0.78040061]
[1749589479721,0.342,109750.0,109730.0,1.07220042]
[1749589479939,0.002,109750.0,109730.0,0.45602235]
[1749589480159,0.002,109750.0,109740.0,0.0157]
[1749589480388,0.002,109750.0,109740.0,0.01686895]
[1749589480591,0.002,109750.0,109730.0,1.05733147]
[1749589480811,0.342,109750.0,109730.0,1.07417031]
[1749589481033,0.342,109750.0,109730.0,1.07317045]
[1749589481245,0.342,109750.0,109730.0,1.05633147]
[1749589481488,0.342,109750.0,109740.0,0.001]
[1749589481708,0.342,109750.0,109730.0,1.05647637]
[1749589481930,0.342,109750.0,109730.0,1.07531668]
[1749589482150,0.342,109750.0,109730.0,1.05847637]
[1749589482585,0.342,109750.0,109730.0,1.07431683]
[1749589482804,0.342,109750.0,109730.0,1.07431679]
[1749589483028,0.343,109750.0,109730.0,1.05747637]
[1749589483251,0.343,109750.0,109730.0,1.07431673]
[1749589483480,0.342,109750.0,109730.0,1.07431673]
[1749589483697,0.342,109750.0,109730.0,1.05847637]
[1749589483913,0.002,109750.0,109740.0,0.64797807]
[1749589484135,0.002,109750.0,109740.0,0.66480369]
[1749589484407,0.002,109750.0,109740.0,0.8546771]
[1749589484634,0.002,109750.0,109740.0,0.85467475]
[1749589484874,0.002,109750.0,109740.0,1.03785147]
[1749589485332,0.002,109750.0,109740.0,1.05467199]
[1749589485548,0.002,109750.0,109740.0,1.30667199]
[1749589485980,0.003,109750.0,109740.0,1.306669]
[1749589486188,0.003,109750.0,109740.0,1.28985147]
[1749589486419,0.002,109750.0,109740.0,1.19133147]
[1749589486636,0.002,109750.0,109740.0,1.30466843]
[1749589486858,0.002,109750.0,109740.0,1.30766839]
[1749589487106,0.002,109750.0,109740.0,1.30966839]
[1749589487329,0.002,109750.0,109740.0,1.30964464]
[1749589487581,0.002,109750.0,109740.0,1.31364429]
[1749589487808,0.002,109750.0,109740.0,1.19833147]
[1749589488035,0.002,109750.0,109740.0,1.31356565]
[1749589488267,0.002,109750.0,109740.0,1.29677147]
[1749589488510,0.002,109750.0,109740.0,1.3135658]